[Event "Early-Titled-Tuesday-Blitz-January-16-2024"]
[Site "Chess.com"]
[Date "2024.01.16"]
[Round "6"]
[White "AndresDelgado77"]
[Black "AlexPapasimakopoulos"]
[Result "0-1"]
[WhiteElo "2394"]
[BlackElo "2645"]
[TimeControl "180+1"]
[EndTime "9:10:11 PST"]
[Termination "AlexPapasimakopoulos won by checkmate"]

1. e4 {[%clk 0:02:59.8]} 1... e6 {[%clk 0:02:59.6]} 2. d4 {[%clk 0:02:58.1]}
2... d5 {[%clk 0:03:00]} 3. e5 {[%clk 0:02:57]} 3... c5 {[%clk 0:03:00]} 4. c3
{[%clk 0:02:56.3]} 4... Nc6 {[%clk 0:03:00.7]} 5. Nf3 {[%clk 0:02:56.7]} 5...
Bd7 {[%clk 0:03:00.9]} 6. a3 {[%clk 0:02:55.8]} 6... f6 {[%clk 0:03:00.5]} 7.
Bb5 {[%clk 0:02:52]} 7... fxe5 {[%clk 0:02:52.2]} 8. Bxc6 {[%clk 0:02:50.4]}
8... Bxc6 {[%clk 0:02:50.2]} 9. Nxe5 {[%clk 0:02:49.4]} 9... Nf6 {[%clk
0:02:50.5]} 10. Qe2 {[%clk 0:02:40.1]} 10... Qc8 {[%clk 0:02:42.5]} 11. Bg5
{[%clk 0:02:18.6]} 11... Be7 {[%clk 0:02:42.4]} 12. dxc5 {[%clk 0:02:10.5]}
12... O-O {[%clk 0:02:42]} 13. Nd2 {[%clk 0:01:53]} 13... Bxc5 {[%clk
0:02:37.7]} 14. O-O {[%clk 0:01:48.5]} 14... Be8 {[%clk 0:02:32.4]} 15. Rae1
{[%clk 0:01:39.2]} 15... Bh5 {[%clk 0:02:30.7]} 16. Qd3 {[%clk 0:01:25.5]} 16...
a6 {[%clk 0:02:17.1]} 17. Qh3 {[%clk 0:01:22.7]} 17... Be8 {[%clk 0:02:12.9]}
18. Nb3 {[%clk 0:00:37.5]} 18... Bb6 {[%clk 0:02:11.5]} 19. Nd4 {[%clk
0:00:35.8]} 19... Bxd4 {[%clk 0:02:06]} 20. cxd4 {[%clk 0:00:35.3]} 20... Bb5
{[%clk 0:02:00.4]} 21. Rc1 {[%clk 0:00:35.2]} 21... Qe8 {[%clk 0:01:55.4]} 22.
Rfe1 {[%clk 0:00:34.3]} 22... Ne4 {[%clk 0:01:55.9]} 23. Be3 {[%clk 0:00:32.7]}
23... Rc8 {[%clk 0:01:55.6]} 24. f3 {[%clk 0:00:31.5]} 24... Nd6 {[%clk
0:01:55.1]} 25. Bd2 {[%clk 0:00:30.6]} 25... Nf5 {[%clk 0:01:53.7]} 26. Bb4
{[%clk 0:00:29.1]} 26... Rxc1 {[%clk 0:01:50.7]} 27. Rxc1 {[%clk 0:00:28.9]}
27... Nxd4 {[%clk 0:01:50.9]} 28. Rc7 {[%clk 0:00:25]} 28... Rf4 {[%clk
0:01:19]} 29. Bd2 {[%clk 0:00:20.7]} 29... Qd8 {[%clk 0:01:12.7]} 30. Ba5 {[%clk
0:00:13.2]} 30... Qf8 {[%clk 0:00:57.1]} 31. Kf2 {[%clk 0:00:11]} 31... h6
{[%clk 0:00:51.1]} 32. Bc3 {[%clk 0:00:08.9]} 32... Qf6 {[%clk 0:00:49.7]} 33.
Rc8+ {[%clk 0:00:07.8]} 33... Kh7 {[%clk 0:00:49.7]} 34. Qg3 {[%clk 0:00:06.7]}
34... Qxe5 {[%clk 0:00:46.2]} 35. Rb8 {[%clk 0:00:03]} 35... Qe2+ {[%clk
0:00:45.5]} 36. Kg1 {[%clk 0:00:01.7]} 36... Qf1# {[%clk 0:00:46.4]} 0-1

[Event "Early-Titled-Tuesday-Blitz-January-16-2024"]
[Site "Chess.com"]
[Date "2024.01.16"]
[Round "6"]
[White "HalfIsCrayfish"]
[Black "otrov-11"]
[Result "0-1"]
[WhiteElo "2613"]
[BlackElo "2469"]
[TimeControl "180+1"]
[EndTime "9:10:11 PST"]
[Termination "otrov-11 won by resignation"]

1. e4 {[%clk 0:03:00.9]} 1... e6 {[%clk 0:03:00]} 2. Nc3 {[%clk 0:03:00.9]} 2...
d5 {[%clk 0:03:00.6]} 3. exd5 {[%clk 0:03:01.8]} 3... exd5 {[%clk 0:03:01.4]} 4.
d4 {[%clk 0:03:02.3]} 4... Nf6 {[%clk 0:02:57]} 5. Bd3 {[%clk 0:03:02.4]} 5...
c5 {[%clk 0:02:54.2]} 6. dxc5 {[%clk 0:02:58.2]} 6... Bxc5 {[%clk 0:02:55.1]} 7.
Nge2 {[%clk 0:02:58]} 7... O-O {[%clk 0:02:55.1]} 8. O-O {[%clk 0:02:52.3]} 8...
h6 {[%clk 0:02:51]} 9. Ng3 {[%clk 0:02:46.3]} 9... Nc6 {[%clk 0:02:49.1]} 10.
Bf4 {[%clk 0:02:42.8]} 10... Be6 {[%clk 0:02:44.7]} 11. Qd2 {[%clk 0:02:41.3]}
11... Re8 {[%clk 0:02:41.2]} 12. Rae1 {[%clk 0:02:36.5]} 12... Rc8 {[%clk
0:02:28.1]} 13. a3 {[%clk 0:02:19]} 13... a6 {[%clk 0:02:25.2]} 14. Nf5 {[%clk
0:02:17.5]} 14... Bf8 {[%clk 0:02:21.1]} 15. h3 {[%clk 0:01:44.2]} 15... Ne4
{[%clk 0:02:02]} 16. Bxe4 {[%clk 0:01:32.6]} 16... dxe4 {[%clk 0:02:00.5]} 17.
Nd6 {[%clk 0:01:32.8]} 17... Bxd6 {[%clk 0:01:58.2]} 18. Bxd6 {[%clk 0:00:55.7]}
18... Bc4 {[%clk 0:01:52.1]} 19. Ne2 {[%clk 0:00:35.9]} 19... Re6 {[%clk
0:01:52]} 20. Bf4 {[%clk 0:00:32]} 20... Qxd2 {[%clk 0:01:52.1]} 21. Bxd2 {[%clk
0:00:32.9]} 21... Bxe2 {[%clk 0:01:52.4]} 22. Rxe2 {[%clk 0:00:32.9]} 22... Nd4
{[%clk 0:01:53.3]} 23. Re3 {[%clk 0:00:28.3]} 23... Rxc2 {[%clk 0:01:53.5]} 24.
Bc3 {[%clk 0:00:24.5]} 24... Ne2+ {[%clk 0:01:54]} 25. Kh2 {[%clk 0:00:22]}
25... Nxc3 {[%clk 0:01:54.6]} 26. bxc3 {[%clk 0:00:21.8]} 26... b5 {[%clk
0:01:48.7]} 27. Kg3 {[%clk 0:00:19.1]} 27... Rc6 {[%clk 0:01:49.1]} 28. Kf4
{[%clk 0:00:17.9]} 28... R2xc3 {[%clk 0:01:49.5]} 29. Kxe4 {[%clk 0:00:17.2]}
29... R6c4+ {[%clk 0:01:47]} 30. Kf3 {[%clk 0:00:07]} 30... Rxe3+ {[%clk
0:01:47.9]} 31. fxe3 {[%clk 0:00:07.1]} 31... Rc3 {[%clk 0:01:48.8]} 32. Ra1
{[%clk 0:00:07.1]} 32... Kf8 {[%clk 0:01:45]} 33. Ke4 {[%clk 0:00:05.9]} 33...
Ke7 {[%clk 0:01:44.9]} 34. Kd4 {[%clk 0:00:06]} 34... Rc2 {[%clk 0:01:44.4]} 35.
g4 {[%clk 0:00:01.8]} 35... Kd6 {[%clk 0:01:44]} 36. a4 {[%clk 0:00:02]} 36...
b4 {[%clk 0:01:43.3]} 37. a5 {[%clk 0:00:01.5]} 37... b3 {[%clk 0:01:43.7]} 38.
Rb1 {[%clk 0:00:01.7]} 38... b2 {[%clk 0:01:43.6]} 39. Kd3 {[%clk 0:00:01.9]}
39... Rh2 {[%clk 0:01:43.8]} 40. Kc3 {[%clk 0:00:02.4]} 40... Kd5 {[%clk
0:01:43.9]} 41. Kb3 {[%clk 0:00:01.3]} 41... Ke4 {[%clk 0:01:44.1]} 42. Ka2
{[%clk 0:00:01.8]} 42... Kxe3 {[%clk 0:01:44.3]} 43. Rf1 {[%clk 0:00:02.2]}
43... f6 {[%clk 0:01:43.5]} 44. Re1+ {[%clk 0:00:01.9]} 44... Kf4 {[%clk
0:01:43.2]} 45. Re6 {[%clk 0:00:02.7]} 45... Kg3 {[%clk 0:01:42.7]} 46. Rxa6
{[%clk 0:00:02.6]} 46... Kxh3 {[%clk 0:01:43.1]} 47. Ra8 {[%clk 0:00:02.8]}
47... Kxg4 {[%clk 0:01:43.1]} 48. a6 {[%clk 0:00:03.1]} 48... Rh5 {[%clk
0:01:38.1]} 49. Kxb2 {[%clk 0:00:02]} 49... Ra5 {[%clk 0:01:36.1]} 50. Kb3
{[%clk 0:00:02.4]} 50... g5 {[%clk 0:01:36]} 51. Kb4 {[%clk 0:00:03]} 51... Ra1
{[%clk 0:01:35.8]} 52. Kb5 {[%clk 0:00:03.6]} 52... f5 {[%clk 0:01:36]} 53. Rh8
{[%clk 0:00:03.3]} 53... h5 {[%clk 0:01:35.5]} 54. Kb6 {[%clk 0:00:03.7]} 54...
f4 {[%clk 0:01:36]} 55. Kb7 {[%clk 0:00:03.7]} 55... f3 {[%clk 0:01:36.3]} 56.
Rh6 {[%clk 0:00:04.3]} 56... h4 {[%clk 0:01:34.4]} 57. a7 {[%clk 0:00:04.4]}
57... Rxa7+ {[%clk 0:01:34.6]} 58. Kxa7 {[%clk 0:00:05.3]} 58... f2 {[%clk
0:01:33]} 59. Rf6 {[%clk 0:00:05.9]} 59... Kg3 {[%clk 0:01:33.5]} 60. Kb6 {[%clk
0:00:06.5]} 60... Kg2 {[%clk 0:01:33.6]} 0-1

[Event "Early-Titled-Tuesday-Blitz-January-16-2024"]
[Site "Chess.com"]
[Date "2024.01.16"]
[Round "6"]
[White "Nasrin_Babayeva"]
[Black "gabduschew"]
[Result "0-1"]
[WhiteElo "1860"]
[BlackElo "2444"]
[TimeControl "180+1"]
[EndTime "9:10:15 PST"]
[Termination "gabduschew won by resignation"]

1. e4 {[%clk 0:03:00.9]} 1... Nc6 {[%clk 0:02:58.7]} 2. d3 {[%clk 0:03:00.3]}
2... e5 {[%clk 0:02:57.7]} 3. Nd2 {[%clk 0:03:00.3]} 3... Bc5 {[%clk 0:02:57.4]}
4. c3 {[%clk 0:02:59.9]} 4... f5 {[%clk 0:02:55.2]} 5. exf5 {[%clk 0:02:58.5]}
5... Nf6 {[%clk 0:02:54.2]} 6. Ngf3 {[%clk 0:02:58.2]} 6... d5 {[%clk 0:02:52]}
7. Nxe5 {[%clk 0:02:49.2]} 7... Bxf2+ {[%clk 0:02:42.8]} 8. Kxf2 {[%clk
0:02:50.1]} 8... Nxe5 {[%clk 0:02:42.5]} 9. Nf3 {[%clk 0:02:44.8]} 9... Neg4+
{[%clk 0:02:39.5]} 10. Kg1 {[%clk 0:02:43.8]} 10... Bxf5 {[%clk 0:02:35.8]} 11.
h3 {[%clk 0:02:42.2]} 11... Nh6 {[%clk 0:02:35.3]} 12. Bxh6 {[%clk 0:02:41]}
12... gxh6 {[%clk 0:02:34.9]} 13. Qd2 {[%clk 0:02:40.4]} 13... Qd6 {[%clk
0:02:15.6]} 14. Re1+ {[%clk 0:02:31.4]} 14... Kf7 {[%clk 0:01:59.7]} 15. Qxh6
{[%clk 0:02:32.3]} 15... Rae8 {[%clk 0:01:58]} 16. Ng5+ {[%clk 0:02:29.3]} 16...
Kg8 {[%clk 0:01:56.3]} 17. Rxe8+ {[%clk 0:02:18]} 17... Nxe8 {[%clk 0:01:55.6]}
18. Qxd6 {[%clk 0:02:09.2]} 18... Nxd6 {[%clk 0:01:55.4]} 19. g4 {[%clk
0:02:01.3]} 19... Bd7 {[%clk 0:01:53.9]} 20. Bg2 {[%clk 0:01:59.1]} 20... c6
{[%clk 0:01:52.5]} 21. Kf2 {[%clk 0:01:53.1]} 21... h5 {[%clk 0:01:50.1]} 22.
Bf3 {[%clk 0:01:45]} 22... hxg4 {[%clk 0:01:48.4]} 23. hxg4 {[%clk 0:01:41.6]}
23... Rxh1 {[%clk 0:01:47.6]} 24. Bxh1 {[%clk 0:01:42.5]} 24... Bxg4 {[%clk
0:01:47.4]} 25. Bf3 {[%clk 0:01:40.1]} 25... Bf5 {[%clk 0:01:46.5]} 26. d4
{[%clk 0:01:37.6]} 26... Bb1 {[%clk 0:01:43.8]} 27. a3 {[%clk 0:01:36.1]} 27...
Nc4 {[%clk 0:01:43.1]} 28. Bg4 {[%clk 0:01:23.6]} 28... Kf8 {[%clk 0:01:29.2]}
29. Bc8 {[%clk 0:01:23]} 29... Nd6 {[%clk 0:01:28.5]} 30. Bg4 {[%clk 0:01:14.5]}
30... Ke7 {[%clk 0:01:28.1]} 31. Be2 {[%clk 0:01:04.7]} 31... Be4 {[%clk
0:01:24.4]} 32. Nxe4 {[%clk 0:01:02.9]} 32... Nxe4+ {[%clk 0:01:23.7]} 33. Ke3
{[%clk 0:01:02]} 33... Kd6 {[%clk 0:01:21.6]} 34. Bf3 {[%clk 0:00:49.6]} 34...
Ng5 {[%clk 0:01:20.2]} 35. Bg4 {[%clk 0:00:49]} 35... b6 {[%clk 0:01:18.9]} 36.
Bc8 {[%clk 0:00:29.8]} 36... a5 {[%clk 0:01:16.5]} 37. Bg4 {[%clk 0:00:28.9]}
37... Ne4 {[%clk 0:01:14.5]} 38. Bf5 {[%clk 0:00:25.4]} 38... Nf6 {[%clk
0:01:11.9]} 39. Bd3 {[%clk 0:00:22.5]} 39... c5 {[%clk 0:01:11.3]} 40. Bb5
{[%clk 0:00:20.2]} 40... Ng4+ {[%clk 0:01:07.9]} 41. Kf4 {[%clk 0:00:19.8]}
41... Nf2 {[%clk 0:01:07.3]} 42. Ba4 {[%clk 0:00:12.4]} 42... Nd3+ {[%clk
0:01:06.1]} 43. Ke3 {[%clk 0:00:11.3]} 43... Nxb2 {[%clk 0:01:06]} 44. dxc5+
{[%clk 0:00:11.6]} 44... Kxc5 {[%clk 0:01:05.5]} 45. Bb3 {[%clk 0:00:11.2]}
45... Nc4+ {[%clk 0:01:03.5]} 46. Kd3 {[%clk 0:00:10.5]} 46... Nxa3 {[%clk
0:01:03]} 0-1

[Event "Early-Titled-Tuesday-Blitz-January-16-2024"]
[Site "Chess.com"]
[Date "2024.01.16"]
[Round "6"]
[White "semchik73"]
[Black "IMRosen"]
[Result "0-1"]
[WhiteElo "2414"]
[BlackElo "2653"]
[TimeControl "180+1"]
[EndTime "9:10:21 PST"]
[Termination "IMRosen won by resignation"]

1. Nf3 {[%clk 0:03:00.3]} 1... d5 {[%clk 0:02:59.4]} 2. c4 {[%clk 0:03:00.6]}
2... e6 {[%clk 0:02:59]} 3. d4 {[%clk 0:03:00.8]} 3... Nf6 {[%clk 0:02:59.3]} 4.
Nc3 {[%clk 0:03:01.3]} 4... Nbd7 {[%clk 0:02:59.5]} 5. Bg5 {[%clk 0:03:01.3]}
5... c6 {[%clk 0:02:56.7]} 6. e3 {[%clk 0:03:01.4]} 6... Qa5 {[%clk 0:02:56.2]}
7. Bxf6 {[%clk 0:02:52.4]} 7... Nxf6 {[%clk 0:02:55.9]} 8. Bd3 {[%clk
0:02:52.6]} 8... Bb4 {[%clk 0:02:54.9]} 9. Qc2 {[%clk 0:02:52.8]} 9... dxc4
{[%clk 0:02:55.1]} 10. Bxc4 {[%clk 0:02:51.8]} 10... c5 {[%clk 0:02:55.7]} 11.
O-O {[%clk 0:02:45.5]} 11... cxd4 {[%clk 0:02:54.8]} 12. Nxd4 {[%clk 0:02:45.8]}
12... O-O {[%clk 0:02:55.1]} 13. a3 {[%clk 0:02:38.8]} 13... Bxc3 {[%clk
0:02:55.1]} 14. Qxc3 {[%clk 0:02:38]} 14... Qxc3 {[%clk 0:02:55.3]} 15. bxc3
{[%clk 0:02:38.5]} 15... b6 {[%clk 0:02:55.1]} 16. Rfd1 {[%clk 0:02:33]} 16...
Bb7 {[%clk 0:02:53.5]} 17. Nb5 {[%clk 0:02:29.7]} 17... Rac8 {[%clk 0:02:13.8]}
18. Nd6 {[%clk 0:02:27.8]} 18... Rc7 {[%clk 0:02:10.8]} 19. Be2 {[%clk
0:02:25.6]} 19... Bd5 {[%clk 0:01:49.9]} 20. c4 {[%clk 0:02:19]} 20... Bc6
{[%clk 0:01:48.5]} 21. Rac1 {[%clk 0:02:11.1]} 21... Ba4 {[%clk 0:01:24.3]} 22.
Rd2 {[%clk 0:02:09.4]} 22... Rd8 {[%clk 0:01:19]} 23. Bd1 {[%clk 0:01:58.1]}
23... Bxd1 {[%clk 0:00:57.9]} 24. Rcxd1 {[%clk 0:01:57.9]} 24... Kf8 {[%clk
0:00:57.8]} 25. e4 {[%clk 0:01:42.9]} 25... e5 {[%clk 0:00:42.4]} 26. Nf5 {[%clk
0:01:37.8]} 26... Rxd2 {[%clk 0:00:36]} 27. Rxd2 {[%clk 0:01:38.1]} 27... Rd7
{[%clk 0:00:15.5]} 28. Rxd7 {[%clk 0:01:31.5]} 28... Nxd7 {[%clk 0:00:16.4]} 29.
Nd6 {[%clk 0:01:30.7]} 29... a6 {[%clk 0:00:11.8]} 30. f3 {[%clk 0:01:26.4]}
30... Ke7 {[%clk 0:00:11.9]} 31. Nf5+ {[%clk 0:01:24.9]} 31... Kf6 {[%clk
0:00:11.8]} 32. Ne3 {[%clk 0:01:24.2]} 32... Ke6 {[%clk 0:00:10.4]} 33. Kf2
{[%clk 0:01:21]} 33... g6 {[%clk 0:00:10.1]} 34. Nd5 {[%clk 0:01:19.8]} 34...
Kd6 {[%clk 0:00:08.5]} 35. Ke3 {[%clk 0:01:20.5]} 35... Kc5 {[%clk 0:00:08.1]}
36. Kd3 {[%clk 0:01:20.8]} 36... f5 {[%clk 0:00:07]} 37. exf5 {[%clk 0:01:17.5]}
37... gxf5 {[%clk 0:00:07.3]} 38. Ne7 {[%clk 0:01:18.1]} 38... e4+ {[%clk
0:00:03.9]} 39. fxe4 {[%clk 0:01:15.8]} 39... fxe4+ {[%clk 0:00:04.8]} 40. Kxe4
{[%clk 0:01:16.1]} 40... Kxc4 {[%clk 0:00:05.4]} 41. g4 {[%clk 0:01:12]} 41...
b5 {[%clk 0:00:02.7]} 42. g5 {[%clk 0:01:11.7]} 42... Kb3 {[%clk 0:00:02.8]} 43.
Kd5 {[%clk 0:01:08.2]} 43... Kxa3 {[%clk 0:00:02]} 44. Kc6 {[%clk 0:01:08.7]}
44... Ne5+ {[%clk 0:00:01.6]} 45. Kd5 {[%clk 0:01:07.1]} 45... Ng4 {[%clk
0:00:01.2]} 46. h3 {[%clk 0:01:06.7]} 46... Nf2 {[%clk 0:00:01.8]} 47. h4 {[%clk
0:01:06.6]} 47... b4 {[%clk 0:00:02.6]} 48. Kc4 {[%clk 0:01:06.9]} 48... b3
{[%clk 0:00:03.1]} 49. Nd5 {[%clk 0:01:07.5]} 49... b2 {[%clk 0:00:03]} 50. Nc3
{[%clk 0:01:08.1]} 50... Ne4 {[%clk 0:00:03.5]} 51. Nb1+ {[%clk 0:01:07.8]}
51... Ka2 {[%clk 0:00:04.1]} 52. h5 {[%clk 0:01:05.4]} 52... Kxb1 {[%clk
0:00:04.1]} 53. g6 {[%clk 0:01:06.1]} 53... hxg6 {[%clk 0:00:04.6]} 54. h6
{[%clk 0:01:06.3]} 54... Nf6 {[%clk 0:00:05.2]} 55. h7 {[%clk 0:01:06.8]} 55...
Nxh7 {[%clk 0:00:06]} 56. Kc3 {[%clk 0:01:06.8]} 56... Kc1 {[%clk 0:00:06.9]}
0-1

[Event "Early-Titled-Tuesday-Blitz-January-16-2024"]
[Site "Chess.com"]
[Date "2024.01.16"]
[Round "6"]
[White "Mikayel99"]
[Black "Zurability"]
[Result "0-1"]
[WhiteElo "2577"]
[BlackElo "2725"]
[TimeControl "180+1"]
[EndTime "9:10:22 PST"]
[Termination "Zurability won by resignation"]

1. Nf3 {[%clk 0:02:23.9]} 1... d5 {[%clk 0:02:54.7]} 2. d4 {[%clk 0:02:24]} 2...
Nf6 {[%clk 0:02:54.6]} 3. g3 {[%clk 0:02:24.5]} 3... c6 {[%clk 0:02:53.8]} 4.
Bg2 {[%clk 0:02:24.8]} 4... Bf5 {[%clk 0:02:54.4]} 5. O-O {[%clk 0:02:25.1]}
5... h6 {[%clk 0:02:53.1]} 6. b3 {[%clk 0:02:25.1]} 6... e6 {[%clk 0:02:53.4]}
7. c4 {[%clk 0:02:24.2]} 7... Nbd7 {[%clk 0:02:53.6]} 8. Nc3 {[%clk 0:02:23.8]}
8... Bd6 {[%clk 0:02:52.5]} 9. Re1 {[%clk 0:02:22.9]} 9... O-O {[%clk
0:02:46.7]} 10. Bb2 {[%clk 0:02:22]} 10... Ne4 {[%clk 0:02:40.3]} 11. Nd2 {[%clk
0:02:13.7]} 11... Nxd2 {[%clk 0:02:24]} 12. Qxd2 {[%clk 0:02:13.1]} 12... Bh7
{[%clk 0:02:07]} 13. e4 {[%clk 0:02:11.8]} 13... dxc4 {[%clk 0:02:06.7]} 14.
bxc4 {[%clk 0:02:11.1]} 14... e5 {[%clk 0:02:07.2]} 15. d5 {[%clk 0:01:59.2]}
15... Rc8 {[%clk 0:02:06.8]} 16. Bh3 {[%clk 0:01:44.3]} 16... Rc7 {[%clk
0:01:58.6]} 17. dxc6 {[%clk 0:01:38.8]} 17... Rxc6 {[%clk 0:01:58.6]} 18. Nb5
{[%clk 0:01:33.3]} 18... Nb6 {[%clk 0:01:34.6]} 19. Nxa7 {[%clk 0:01:16]} 19...
Rxc4 {[%clk 0:01:21.7]} 20. Rad1 {[%clk 0:01:07.7]} 20... Bc7 {[%clk 0:01:11.7]}
21. Qe3 {[%clk 0:00:52.2]} 21... Qe8 {[%clk 0:00:57]} 22. Qb3 {[%clk 0:00:45.7]}
22... Bxe4 {[%clk 0:00:39.2]} 23. Nb5 {[%clk 0:00:42.7]} 23... Bc2 {[%clk
0:00:20.6]} 24. Qe3 {[%clk 0:00:28.7]} 24... Qxb5 {[%clk 0:00:19.3]} 25. Ba3
{[%clk 0:00:23.3]} 25... Ra8 {[%clk 0:00:10.6]} 26. Rc1 {[%clk 0:00:18.2]} 26...
Nd5 {[%clk 0:00:09.7]} 27. Qd2 {[%clk 0:00:11.9]} 27... Ba5 {[%clk 0:00:07.9]}
28. Qe2 {[%clk 0:00:09.8]} 28... Bxe1 {[%clk 0:00:07.7]} 0-1

[Event "Early-Titled-Tuesday-Blitz-January-16-2024"]
[Site "Chess.com"]
[Date "2024.01.16"]
[Round "6"]
[White "Mops_2004"]
[Black "Grossboss19"]
[Result "1-0"]
[WhiteElo "2676"]
[BlackElo "2543"]
[TimeControl "180+1"]
[EndTime "9:10:23 PST"]
[Termination "Mops_2004 won by resignation"]

1. Nf3 {[%clk 0:03:00.9]} 1... c5 {[%clk 0:02:47.3]} 2. c4 {[%clk 0:03:00.3]}
2... Nc6 {[%clk 0:02:46.9]} 3. Nc3 {[%clk 0:03:00.3]} 3... Nf6 {[%clk
0:02:46.8]} 4. d4 {[%clk 0:02:59.8]} 4... cxd4 {[%clk 0:02:47.4]} 5. Nxd4 {[%clk
0:03:00]} 5... d5 {[%clk 0:02:45.2]} 6. cxd5 {[%clk 0:02:55.8]} 6... Nxd5 {[%clk
0:02:43.5]} 7. Nxc6 {[%clk 0:02:55.8]} 7... bxc6 {[%clk 0:02:43.4]} 8. Bd2
{[%clk 0:02:55.8]} 8... e6 {[%clk 0:02:37.8]} 9. g3 {[%clk 0:02:52]} 9... Bb4
{[%clk 0:02:35.4]} 10. Rc1 {[%clk 0:02:49.7]} 10... Bb7 {[%clk 0:02:32.6]} 11.
Bg2 {[%clk 0:02:48.7]} 11... O-O {[%clk 0:02:32.4]} 12. O-O {[%clk 0:02:48.5]}
12... a5 {[%clk 0:02:22.6]} 13. a3 {[%clk 0:02:43.7]} 13... Be7 {[%clk
0:02:21.2]} 14. Na4 {[%clk 0:02:40.6]} 14... Nb6 {[%clk 0:01:47.4]} 15. Nc5
{[%clk 0:02:37.4]} 15... Bxc5 {[%clk 0:01:45.6]} 16. Rxc5 {[%clk 0:02:38.3]}
16... Qd6 {[%clk 0:01:43.1]} 17. Be3 {[%clk 0:02:20.3]} 17... Qxd1 {[%clk
0:01:40.4]} 18. Rxd1 {[%clk 0:02:19.6]} 18... Nd5 {[%clk 0:01:40.9]} 19. Bd2
{[%clk 0:02:16.2]} 19... a4 {[%clk 0:01:37.7]} 20. e4 {[%clk 0:02:16.2]} 20...
Nb6 {[%clk 0:01:21]} 21. Ba5 {[%clk 0:02:12.3]} 21... Ra6 {[%clk 0:01:06.9]} 22.
Bf1 {[%clk 0:02:10.6]} 22... Rxa5 {[%clk 0:01:03.9]} 23. Rxa5 {[%clk 0:02:10.4]}
23... Rb8 {[%clk 0:01:01.9]} 24. Rd4 {[%clk 0:01:59.4]} 24... Kf8 {[%clk
0:00:55.5]} 25. Rb4 {[%clk 0:01:58.4]} 25... Bc8 {[%clk 0:00:54.7]} 26. Ra7
{[%clk 0:01:44.1]} 26... c5 {[%clk 0:00:47.8]} 27. Rxb6 {[%clk 0:01:33.8]} 27...
Rxb6 {[%clk 0:00:46.4]} 28. Ra8 {[%clk 0:01:34.5]} 28... Rc6 {[%clk 0:00:46.1]}
29. Bb5 {[%clk 0:01:33.2]} 29... Rb6 {[%clk 0:00:36.6]} 30. Rxc8+ {[%clk
0:01:32.2]} 30... Ke7 {[%clk 0:00:37.5]} 31. Bxa4 {[%clk 0:01:23.7]} 31... Rxb2
{[%clk 0:00:36.8]} 32. Rxc5 {[%clk 0:01:23.6]} 32... Ra2 {[%clk 0:00:35.9]} 33.
Rc3 {[%clk 0:01:23.8]} 33... Kd6 {[%clk 0:00:35.8]} 34. Re3 {[%clk 0:00:56.5]}
34... Ke5 {[%clk 0:00:35]} 35. Be8 {[%clk 0:00:55.5]} 35... f6 {[%clk
0:00:33.6]} 36. a4 {[%clk 0:00:55.7]} 36... Kd4 {[%clk 0:00:33.2]} 37. Bd7
{[%clk 0:00:53.8]} 37... e5 {[%clk 0:00:31.4]} 38. Bb5 {[%clk 0:00:54]} 38... h5
{[%clk 0:00:15.4]} 39. h4 {[%clk 0:00:51.4]} 39... g5 {[%clk 0:00:15]} 40. hxg5
{[%clk 0:00:49.6]} 40... fxg5 {[%clk 0:00:15.9]} 41. Kg2 {[%clk 0:00:48.8]}
41... h4 {[%clk 0:00:16.1]} 42. gxh4 {[%clk 0:00:48.9]} 42... gxh4 {[%clk
0:00:17]} 43. Bc6 {[%clk 0:00:46.9]} 43... Rc2 {[%clk 0:00:13.8]} 44. Bd5 {[%clk
0:00:46.1]} 44... Rc1 {[%clk 0:00:10.9]} 45. Ra3 {[%clk 0:00:46]} 45... Rc7
{[%clk 0:00:10.3]} 46. a5 {[%clk 0:00:46]} 46... Rg7+ {[%clk 0:00:10.7]} 47. Kh3
{[%clk 0:00:45.2]} 1-0

[Event "Early-Titled-Tuesday-Blitz-January-16-2024"]
[Site "Chess.com"]
[Date "2024.01.16"]
[Round "6"]
[White "Kiborg95"]
[Black "vi_pranav"]
[Result "0-1"]
[WhiteElo "2870"]
[BlackElo "3045"]
[TimeControl "180+1"]
[EndTime "9:10:24 PST"]
[Termination "vi_pranav won by resignation"]

1. e4 {[%clk 0:03:00]} 1... e5 {[%clk 0:02:58.4]} 2. Nf3 {[%clk 0:02:59.5]} 2...
Nc6 {[%clk 0:02:59.3]} 3. c3 {[%clk 0:02:59.3]} 3... g6 {[%clk 0:02:53.6]} 4. d4
{[%clk 0:02:56.2]} 4... Bg7 {[%clk 0:02:54.1]} 5. Be3 {[%clk 0:02:49]} 5... d6
{[%clk 0:02:52.6]} 6. Nbd2 {[%clk 0:02:42.1]} 6... Nf6 {[%clk 0:02:51.8]} 7. h3
{[%clk 0:02:42.5]} 7... O-O {[%clk 0:02:51.2]} 8. Bd3 {[%clk 0:02:39.9]} 8...
Nh5 {[%clk 0:02:47]} 9. O-O {[%clk 0:02:33.6]} 9... Bd7 {[%clk 0:02:43]} 10. a4
{[%clk 0:02:32.8]} 10... h6 {[%clk 0:02:41.1]} 11. Re1 {[%clk 0:02:31.3]} 11...
Re8 {[%clk 0:02:38.8]} 12. a5 {[%clk 0:02:31]} 12... a6 {[%clk 0:02:38.4]} 13.
Qb1 {[%clk 0:02:05]} 13... Qf6 {[%clk 0:02:29.1]} 14. d5 {[%clk 0:01:52.5]}
14... Ne7 {[%clk 0:02:26]} 15. c4 {[%clk 0:01:52.7]} 15... Nf4 {[%clk
0:02:24.7]} 16. Bf1 {[%clk 0:01:52.1]} 16... g5 {[%clk 0:02:24.4]} 17. c5 {[%clk
0:01:43.7]} 17... h5 {[%clk 0:02:19.1]} 18. cxd6 {[%clk 0:01:38.4]} 18... cxd6
{[%clk 0:02:18.7]} 19. Rc1 {[%clk 0:01:28.8]} 19... Rac8 {[%clk 0:02:10.9]} 20.
Ne1 {[%clk 0:01:24.6]} 20... Bh6 {[%clk 0:02:09]} 21. Nc4 {[%clk 0:01:18.9]}
21... Bb5 {[%clk 0:02:06.4]} 22. Ra3 {[%clk 0:01:10.2]} 22... Qg6 {[%clk
0:01:41.9]} 23. Rac3 {[%clk 0:01:03.7]} 23... g4 {[%clk 0:01:23.3]} 24. hxg4
{[%clk 0:00:56.5]} 24... hxg4 {[%clk 0:01:24.2]} 25. g3 {[%clk 0:00:38.9]} 25...
Bxc4 {[%clk 0:01:06.2]} 26. Rxc4 {[%clk 0:00:35.9]} 26... Rxc4 {[%clk
0:01:05.8]} 27. Rxc4 {[%clk 0:00:36.1]} 27... Nexd5 {[%clk 0:00:58.5]} 28. gxf4
{[%clk 0:00:31.3]} 28... exf4 {[%clk 0:00:57.6]} 29. Bd2 {[%clk 0:00:26.5]}
29... Nf6 {[%clk 0:00:39.5]} 30. Bd3 {[%clk 0:00:22.8]} 30... Qh5 {[%clk
0:00:38.2]} 31. Qd1 {[%clk 0:00:21.9]} 31... Nd7 {[%clk 0:00:30.3]} 32. Rd4
{[%clk 0:00:20.8]} 32... Ne5 {[%clk 0:00:29.3]} 33. Bf1 {[%clk 0:00:21.4]} 33...
Re6 {[%clk 0:00:27.2]} 34. Nd3 {[%clk 0:00:20]} 34... Nf3+ {[%clk 0:00:23.4]}
0-1